[Event "*** Titled Tuesday Blitz"]
[Site "Chess.com"]
[Date "2019.02.05"]
[Round "2"]
[White "metra93"]
[Black "snowlord"]
[Result "1/2-1/2"]
[WhiteElo "2541"]
[BlackElo "2712"]
[TimeControl "180+2"]
[EndTime "13:24:50 PST"]
[Termination "Game drawn by repetition"]

1. d4 {[%clk 0:02:59]} 1... Nf6 {[%clk 0:02:59]} 2. c4 {[%clk 0:02:59.5]} 2...
g6 {[%clk 0:03:00.4]} 3. Nc3 {[%clk 0:03:00.3]} 3... d5 {[%clk 0:03:02.1]} 4.
Bg5 {[%clk 0:03:00.8]} 4... Bg7 {[%clk 0:03:00.6]} 5. Bxf6 {[%clk 0:02:48.6]}
5... Bxf6 {[%clk 0:02:59.3]} 6. cxd5 {[%clk 0:02:50.5]} 6... c5 {[%clk
0:02:56.6]} 7. dxc5 {[%clk 0:02:39.6]} 7... Na6 {[%clk 0:02:55.5]} 8. e4 {[%clk
0:02:29.4]} 8... Nxc5 {[%clk 0:02:54.9]} 9. Bb5+ {[%clk 0:02:27.7]} 9... Bd7
{[%clk 0:02:55.4]} 10. Bxd7+ {[%clk 0:02:28.6]} 10... Qxd7 {[%clk 0:02:56.9]}
11. Nge2 {[%clk 0:02:21.6]} 11... O-O {[%clk 0:02:53.7]} 12. O-O {[%clk
0:02:18.8]} 12... b5 {[%clk 0:02:54.6]} 13. b4 {[%clk 0:02:15.2]} 13... Na6
{[%clk 0:02:47.2]} 14. a3 {[%clk 0:02:12.6]} 14... Rac8 {[%clk 0:02:46.2]} 15.
Qd3 {[%clk 0:02:13.6]} 15... Rc4 {[%clk 0:02:43.5]} 16. Rac1 {[%clk 0:02:14.1]}
16... Rfc8 {[%clk 0:02:44.4]} 17. Rfd1 {[%clk 0:01:57.2]} 17... g5 {[%clk
0:02:08.9]} 18. Qe3 {[%clk 0:01:37.5]} 18... h6 {[%clk 0:01:05.4]} 19. e5 {[%clk
0:01:37.3]} 19... Bg7 {[%clk 0:01:06.6]} 20. h3 {[%clk 0:01:38.6]} 20... g4
{[%clk 0:00:58.6]} 21. hxg4 {[%clk 0:01:38]} 21... Qxg4 {[%clk 0:00:54.4]} 22.
Rd4 {[%clk 0:01:16.8]} 22... Rxd4 {[%clk 0:00:53.6]} 23. Nxd4 {[%clk 0:01:12.2]}
23... Nc7 {[%clk 0:00:38.1]} 24. Nc6 {[%clk 0:00:49.9]} 24... Bf8 {[%clk
0:00:38.4]} 25. Qc5 {[%clk 0:00:37]} 25... Qg5 {[%clk 0:00:24.2]} 26. Re1 {[%clk
0:00:26.2]} 26... Re8 {[%clk 0:00:22.2]} 27. e6 {[%clk 0:00:23.7]} 27... fxe6
{[%clk 0:00:20.9]} 28. dxe6 {[%clk 0:00:25.6]} 28... Qxc5 {[%clk 0:00:21.2]} 29.
bxc5 {[%clk 0:00:27.5]} 29... a6 {[%clk 0:00:20.4]} 30. Nb4 {[%clk 0:00:25.3]}
30... Rd8 {[%clk 0:00:18.6]} 31. Ne4 {[%clk 0:00:19.8]} 31... Bg7 {[%clk
0:00:15.9]} 32. Nc6 {[%clk 0:00:19.5]} 32... Re8 {[%clk 0:00:16.7]} 33. Ng3
{[%clk 0:00:20.5]} 33... Kf8 {[%clk 0:00:16.9]} 34. Nf5 {[%clk 0:00:21.5]} 34...
Bf6 {[%clk 0:00:15.7]} 35. Nxh6 {[%clk 0:00:21.4]} 35... Nd5 {[%clk 0:00:16.6]}
36. Ng4 {[%clk 0:00:20]} 36... Rc8 {[%clk 0:00:17.7]} 37. Nxf6 {[%clk
0:00:20.8]} 37... Nxf6 {[%clk 0:00:15.1]} 38. Nb4 {[%clk 0:00:21.6]} 38... a5
{[%clk 0:00:11.4]} 39. Nd3 {[%clk 0:00:21.9]} 39... Rd8 {[%clk 0:00:11.1]} 40.
Ne5 {[%clk 0:00:22.5]} 40... Rd5 {[%clk 0:00:10.5]} 41. c6 {[%clk 0:00:21.5]}
41... Kg7 {[%clk 0:00:11.6]} 42. Rc1 {[%clk 0:00:18.6]} 42... Rd8 {[%clk
0:00:10.4]} 43. c7 {[%clk 0:00:19.6]} 43... Rc8 {[%clk 0:00:11.8]} 44. Nd7
{[%clk 0:00:19.8]} 44... Nd5 {[%clk 0:00:13.1]} 45. Rc5 {[%clk 0:00:17.7]} 45...
Nxc7 {[%clk 0:00:08.3]} 46. Nb6 {[%clk 0:00:14.9]} 46... Rb8 {[%clk 0:00:09.4]}
47. Rxc7 {[%clk 0:00:16.1]} 47... Rxb6 {[%clk 0:00:10.6]} 48. Rxe7+ {[%clk
0:00:17.6]} 48... Kf6 {[%clk 0:00:12.1]} 49. Ra7 {[%clk 0:00:18.8]} 49... b4
{[%clk 0:00:11]} 50. e7 {[%clk 0:00:17.7]} 50... Kf7 {[%clk 0:00:12.4]} 51. axb4
{[%clk 0:00:15.5]} 51... axb4 {[%clk 0:00:14.3]} 52. Ra2 {[%clk 0:00:15.2]}
52... Kxe7 {[%clk 0:00:15.3]} 53. f3 {[%clk 0:00:16.2]} 53... b3 {[%clk
0:00:16.8]} 54. Rb2 {[%clk 0:00:16.7]} 54... Kd6 {[%clk 0:00:18.4]} 55. Kf2
{[%clk 0:00:18.3]} 55... Kd5 {[%clk 0:00:19]} 56. g4 {[%clk 0:00:19.5]} 56...
Kc4 {[%clk 0:00:20.3]} 57. g5 {[%clk 0:00:20.8]} 57... Kc3 {[%clk 0:00:21.8]}
58. Rb1 {[%clk 0:00:21.6]} 58... b2 {[%clk 0:00:22.9]} 59. f4 {[%clk 0:00:22.4]}
59... Kc2 {[%clk 0:00:23.9]} 60. Re1 {[%clk 0:00:22.9]} 60... Re6 {[%clk
0:00:22.5]} 61. Rh1 {[%clk 0:00:21.5]} 61... Rd6 {[%clk 0:00:23.7]} 62. Kf3
{[%clk 0:00:21.4]} 62... Rd1 {[%clk 0:00:21.9]} 63. Rh2+ {[%clk 0:00:22.3]}
63... Rd2 {[%clk 0:00:23.2]} 64. Rh1 {[%clk 0:00:23.5]} 64... Rd1 {[%clk
0:00:23.3]} 65. Rh2+ {[%clk 0:00:24.8]} 65... Rd2 {[%clk 0:00:24.6]} 66. Rh1
{[%clk 0:00:26.3]} 66... Rd3+ {[%clk 0:00:25.2]} 67. Kg4 {[%clk 0:00:27.2]}
67... Rd1 {[%clk 0:00:26.4]} 68. Rh2+ {[%clk 0:00:28.3]} 68... Rd2 {[%clk
0:00:27.7]} 69. Rh1 {[%clk 0:00:29.4]} 69... Rd1 {[%clk 0:00:28.9]} 70. Rh2+
{[%clk 0:00:30.3]} 70... Rd2 {[%clk 0:00:30.1]} 71. Rh1 {[%clk 0:00:31.2]} 71...
Rd1 {[%clk 0:00:31.3]} 72. Rh2+ {[%clk 0:00:32.5]} 72... Rd2 {[%clk 0:00:32.6]}
73. Rh1 {[%clk 0:00:33.9]} 73... Rd1 {[%clk 0:00:33.8]} 74. Rh2+ {[%clk
0:00:33.1]} 74... Rd2 {[%clk 0:00:35]} 75. Rh1 {[%clk 0:00:33.9]} 75... Rd1
{[%clk 0:00:36.1]} 1/2-1/2

[Event "*** Titled Tuesday Blitz"]
[Site "Chess.com"]
[Date "2019.02.05"]
[Round "2"]
[White "sergoy"]
[Black "Artur0208"]
[Result "1-0"]
[WhiteElo "2815"]
[BlackElo "2641"]
[TimeControl "180+2"]
[EndTime "13:24:57 PST"]
[Termination "sergoy won by resignation"]

1. d4 {[%clk 0:02:59]} 1... d5 {[%clk 0:03:00.1]} 2. c4 {[%clk 0:03:00.1]} 2...
e6 {[%clk 0:03:00.7]} 3. Nf3 {[%clk 0:03:01.4]} 3... Nf6 {[%clk 0:03:01.2]} 4.
Nc3 {[%clk 0:03:03]} 4... Be7 {[%clk 0:03:02.1]} 5. g3 {[%clk 0:03:03.2]} 5...
dxc4 {[%clk 0:03:02]} 6. Bg2 {[%clk 0:03:04.4]} 6... Nc6 {[%clk 0:03:03.2]} 7.
Qa4 {[%clk 0:03:03.8]} 7... O-O {[%clk 0:02:58.5]} 8. Qxc4 {[%clk 0:03:04.6]}
8... a6 {[%clk 0:02:59.2]} 9. O-O {[%clk 0:03:04]} 9... Nb4 {[%clk 0:02:56.6]}
10. Qb3 {[%clk 0:02:52.7]} 10... Nbd5 {[%clk 0:02:54]} 11. Ne5 {[%clk
0:02:49.6]} 11... c5 {[%clk 0:02:52.1]} 12. dxc5 {[%clk 0:02:48.6]} 12... Bxc5
{[%clk 0:02:51.5]} 13. Bg5 {[%clk 0:02:49.3]} 13... h6 {[%clk 0:02:45.8]} 14.
Nxd5 {[%clk 0:02:14.6]} 14... hxg5 {[%clk 0:02:39.8]} 15. Nc3 {[%clk 0:02:15.5]}
15... Qc7 {[%clk 0:02:05]} 16. Nd3 {[%clk 0:02:15]} 16... Ba7 {[%clk 0:02:05.9]}
17. Rac1 {[%clk 0:02:15.1]} 17... Qe7 {[%clk 0:02:06.8]} 18. Na4 {[%clk
0:02:13]} 18... Rb8 {[%clk 0:02:05.1]} 19. Nb6 {[%clk 0:02:11.1]} 19... Bd7
{[%clk 0:01:58.9]} 20. Nxd7 {[%clk 0:02:00.1]} 20... Qxd7 {[%clk 0:02:00.8]} 21.
Nc5 {[%clk 0:01:37.9]} 21... Qe7 {[%clk 0:01:57.8]} 22. Nd3 {[%clk 0:01:30.1]}
22... Rfd8 {[%clk 0:01:56.8]} 23. Rc4 {[%clk 0:01:26.6]} 23... Rd6 {[%clk
0:01:55.7]} 24. Rfc1 {[%clk 0:01:26.7]} 24... Ne8 {[%clk 0:01:50.3]} 25. Rc8
{[%clk 0:01:25.6]} 25... Rd8 {[%clk 0:01:40.2]} 26. Rxd8 {[%clk 0:01:22.7]}
26... Qxd8 {[%clk 0:01:41.3]} 27. Qb4 {[%clk 0:01:06]} 27... Nd6 {[%clk
0:01:40.6]} 28. Bf3 {[%clk 0:01:02.8]} 28... Nf5 {[%clk 0:01:39.9]} 29. Kf1
{[%clk 0:00:59.1]} 29... Nd4 {[%clk 0:01:36.2]} 30. Bg2 {[%clk 0:00:59.5]} 30...
Qf6 {[%clk 0:01:17.7]} 31. Qd6 {[%clk 0:00:51.3]} 31... Nf5 {[%clk 0:00:49.3]}
32. Qe5 {[%clk 0:00:49.7]} 32... Ne3+ {[%clk 0:00:33.9]} 33. Kg1 {[%clk
0:00:40.6]} 33... Nxg2 {[%clk 0:00:35.1]} 34. Kxg2 {[%clk 0:00:30.6]} 34... Rd8
{[%clk 0:00:20.5]} 35. Qxf6 {[%clk 0:00:29.1]} 35... gxf6 {[%clk 0:00:22.4]} 36.
Rc7 {[%clk 0:00:29.4]} 36... Rb8 {[%clk 0:00:24]} 37. h4 {[%clk 0:00:24.7]}
37... Bb6 {[%clk 0:00:21.5]} 38. Rc4 {[%clk 0:00:23.6]} 38... Kg7 {[%clk
0:00:20.4]} 39. a4 {[%clk 0:00:21.2]} 39... a5 {[%clk 0:00:21]} 40. Rc3 {[%clk
0:00:19.3]} 40... Bd4 {[%clk 0:00:21.7]} 41. Rc4 {[%clk 0:00:20.1]} 41... Rd8
{[%clk 0:00:20.2]} 42. Rc7 {[%clk 0:00:20.8]} 42... b6 {[%clk 0:00:20.6]} 43.
hxg5 {[%clk 0:00:22.2]} 43... fxg5 {[%clk 0:00:22.5]} 44. b3 {[%clk 0:00:24]}
44... Bf6 {[%clk 0:00:22.6]} 45. Rb7 {[%clk 0:00:25.3]} 45... Bd4 {[%clk
0:00:23.6]} 46. Kf3 {[%clk 0:00:26.3]} 46... Kg6 {[%clk 0:00:23.6]} 47. g4
{[%clk 0:00:27.7]} 47... f5 {[%clk 0:00:24]} 48. Re7 {[%clk 0:00:28.6]} 48...
Kf6 {[%clk 0:00:23.6]} 49. Rb7 {[%clk 0:00:29.7]} 49... Rc8 {[%clk 0:00:23.6]}
50. gxf5 {[%clk 0:00:30.6]} 50... exf5 {[%clk 0:00:25.5]} 51. e3 {[%clk
0:00:32]} 51... Rc3 {[%clk 0:00:19.4]} 52. Ke2 {[%clk 0:00:32.6]} 52... Bc5
{[%clk 0:00:07.5]} 53. Kd2 {[%clk 0:00:29.6]} 53... Bb4 {[%clk 0:00:06.3]} 54.
Nxb4 {[%clk 0:00:30.6]} 54... axb4 {[%clk 0:00:08.2]} 55. Rxb6+ {[%clk
0:00:32.1]} 55... Ke5 {[%clk 0:00:08.4]} 56. Rb5+ {[%clk 0:00:33.1]} 56... Kf6
{[%clk 0:00:08.8]} 57. Rxb4 {[%clk 0:00:34.3]} 57... Rc7 {[%clk 0:00:10.7]} 58.
a5 {[%clk 0:00:35.2]} 58... Ke5 {[%clk 0:00:11.7]} 59. f3 {[%clk 0:00:34]} 59...
Rc5 {[%clk 0:00:08.9]} 60. Ra4 {[%clk 0:00:34.8]} 60... Rb5 {[%clk 0:00:10.3]}
61. a6 {[%clk 0:00:35.4]} 61... Rb8 {[%clk 0:00:10.3]} 62. a7 {[%clk 0:00:36.8]}
62... Ra8 {[%clk 0:00:11.7]} 63. Ra5+ {[%clk 0:00:38.3]} 63... Kd6 {[%clk
0:00:12]} 64. Kd3 {[%clk 0:00:39.7]} 64... f4 {[%clk 0:00:12.4]} 65. exf4 {[%clk
0:00:40.3]} 65... gxf4 {[%clk 0:00:14.3]} 66. Ke4 {[%clk 0:00:41.8]} 66... Kc6
{[%clk 0:00:15.8]} 67. Kxf4 {[%clk 0:00:42.7]} 67... Kb6 {[%clk 0:00:17.7]} 68.
Ra4 {[%clk 0:00:43.6]} 68... Rf8+ {[%clk 0:00:18.8]} 69. Ke5 {[%clk 0:00:44.1]}
69... Re8+ {[%clk 0:00:19.7]} 70. Kd6 {[%clk 0:00:45.2]} 70... Rd8+ {[%clk
0:00:20.7]} 71. Ke7 {[%clk 0:00:46.5]} 71... Ra8 {[%clk 0:00:20.3]} 72. f4
{[%clk 0:00:47.7]} 72... Kc6 {[%clk 0:00:21.7]} 73. f5 {[%clk 0:00:49.1]} 73...
Kd5 {[%clk 0:00:23.6]} 74. f6 {[%clk 0:00:50.4]} 74... Ke5 {[%clk 0:00:25.1]}
75. f7 {[%clk 0:00:52]} 1-0

[Event "*** Titled Tuesday Blitz"]
[Site "Chess.com"]
[Date "2019.02.05"]
[Round "2"]
[White "INLOVEWITHF"]
[Black "HElissalt"]
[Result "1/2-1/2"]
[WhiteElo "2270"]
[BlackElo "2078"]
[TimeControl "180+2"]
[EndTime "13:25:02 PST"]
[Termination "Game drawn by agreement"]

1. e4 {[%clk 0:03:01.9]} 1... d6 {[%clk 0:03:00.4]} 2. d4 {[%clk 0:03:02.3]}
2... Nf6 {[%clk 0:02:59.1]} 3. Nc3 {[%clk 0:03:02.8]} 3... e5 {[%clk 0:03:00]}
4. Nf3 {[%clk 0:03:02.4]} 4... Nbd7 {[%clk 0:03:00.2]} 5. g4 {[%clk 0:03:03.1]}
5... g6 {[%clk 0:02:59.9]} 6. g5 {[%clk 0:03:03.1]} 6... Nh5 {[%clk 0:03:00.9]}
7. Bh3 {[%clk 0:03:04.1]} 7... Bg7 {[%clk 0:03:01.2]} 8. Bg4 {[%clk 0:03:03.6]}
8... exd4 {[%clk 0:02:21.9]} 9. Nxd4 {[%clk 0:03:02.8]} 9... Bxd4 {[%clk
0:02:19.1]} 10. Qxd4 {[%clk 0:03:02.3]} 10... Ne5 {[%clk 0:02:19.9]} 11. Be2
{[%clk 0:02:50.3]} 11... O-O {[%clk 0:02:16.4]} 12. f4 {[%clk 0:02:49.2]} 12...
Nc6 {[%clk 0:01:59.7]} 13. Qf2 {[%clk 0:02:47]} 13... Ng7 {[%clk 0:01:50.8]} 14.
Be3 {[%clk 0:02:44.2]} 14... f6 {[%clk 0:01:50.2]} 15. h4 {[%clk 0:02:43]} 15...
Be6 {[%clk 0:01:35.7]} 16. O-O-O {[%clk 0:02:41.7]} 16... Qe7 {[%clk 0:01:34.9]}
17. Rhg1 {[%clk 0:02:13.1]} 17... f5 {[%clk 0:01:35.3]} 18. Nd5 {[%clk
0:01:56.1]} 18... Bxd5 {[%clk 0:01:24]} 19. exd5 {[%clk 0:01:58]} 19... Nb8
{[%clk 0:01:17.5]} 20. Bd4 {[%clk 0:01:54.2]} 20... Nd7 {[%clk 0:01:18]} 21. h5
{[%clk 0:01:51.8]} 21... gxh5 {[%clk 0:01:15.9]} 22. g6 {[%clk 0:01:42.7]} 22...
Nf6 {[%clk 0:01:06.1]} 23. gxh7+ {[%clk 0:01:38.2]} 23... Kh8 {[%clk 0:01:06.6]}
24. Bf3 {[%clk 0:01:35.7]} 24... Ng4 {[%clk 0:00:55.2]} 25. Bxg4 {[%clk
0:01:28.1]} 25... fxg4 {[%clk 0:00:55.7]} 26. Rde1 {[%clk 0:01:16.9]} 26... Qf7
{[%clk 0:00:54.2]} 27. c3 {[%clk 0:00:57.7]} 27... Kxh7 {[%clk 0:00:51.1]} 28.
Qc2+ {[%clk 0:00:54.2]} 28... Qf5 {[%clk 0:00:49.5]} 29. Re7 {[%clk 0:00:52.4]}
29... Qxc2+ {[%clk 0:00:33.3]} 30. Kxc2 {[%clk 0:00:54.3]} 30... Rg8 {[%clk
0:00:32.8]} 31. f5 {[%clk 0:00:52.1]} 31... Kh6 {[%clk 0:00:32]} 32. Be3+ {[%clk
0:00:51.4]} 32... Kh7 {[%clk 0:00:32.8]} 33. Rh1 {[%clk 0:00:47.7]} 33... Rgf8
{[%clk 0:00:29.4]} 34. Rxh5+ {[%clk 0:00:45.3]} 34... Kg8 {[%clk 0:00:30.5]} 35.
Rg5 {[%clk 0:00:33.1]} 35... Rf7 {[%clk 0:00:31.5]} 36. Rxf7 {[%clk 0:00:33.4]}
36... Kxf7 {[%clk 0:00:31.9]} 37. Bd4 {[%clk 0:00:31.4]} 37... Rg8 {[%clk
0:00:31.9]} 38. Rxg4 {[%clk 0:00:27.5]} 38... Nxf5 {[%clk 0:00:32.4]} 39. Rf4
{[%clk 0:00:28.5]} 39... Kg6 {[%clk 0:00:33.2]} 40. Rg4+ {[%clk 0:00:29.7]}
40... Kf7 {[%clk 0:00:33.9]} 41. Rf4 {[%clk 0:00:30.6]} 41... Kg6 {[%clk
0:00:34.8]} 42. Rg4+ {[%clk 0:00:30.5]} 42... Kf7 {[%clk 0:00:36]} 43. Rxg8
{[%clk 0:00:32.2]} 43... Kxg8 {[%clk 0:00:36.4]} 44. Bf6 {[%clk 0:00:32.1]}
44... Kf7 {[%clk 0:00:35.8]} 45. Bd8 {[%clk 0:00:30.9]} 45... Ne3+ {[%clk
0:00:30.6]} 46. Kb3 {[%clk 0:00:14.7]} 46... Nxd5 {[%clk 0:00:30.8]} 47. c4
{[%clk 0:00:15.9]} 47... Ke8 {[%clk 0:00:31.8]} 48. Bg5 {[%clk 0:00:14.1]} 48...
Ne7 {[%clk 0:00:31.9]} 49. Be3 {[%clk 0:00:10.9]} 49... Nc6 {[%clk 0:00:32.8]}
50. a4 {[%clk 0:00:09.9]} 50... Kd7 {[%clk 0:00:33.7]} 51. Kc3 {[%clk
0:00:10.7]} 51... b6 {[%clk 0:00:33.9]} 52. b4 {[%clk 0:00:11.6]} 52... a5
{[%clk 0:00:34.8]} 53. bxa5 {[%clk 0:00:09.7]} 53... Nxa5 {[%clk 0:00:35.5]} 54.
Kb4 {[%clk 0:00:09.8]} 54... Kc6 {[%clk 0:00:35.9]} 55. Bg1 {[%clk 0:00:10.5]}
55... Kb7 {[%clk 0:00:33.8]} 56. Bf2 {[%clk 0:00:09.8]} 56... c5+ {[%clk
0:00:33.7]} 57. Kc3 {[%clk 0:00:09.9]} 57... Kc6 {[%clk 0:00:34.5]} 58. Bg1
{[%clk 0:00:08.5]} 58... Nb7 {[%clk 0:00:33.3]} 59. Bf2 {[%clk 0:00:07.4]} 59...
Nd8 {[%clk 0:00:34.3]} 60. Bg1 {[%clk 0:00:07.3]} 60... Ne6 {[%clk 0:00:35.2]}
61. Bf2 {[%clk 0:00:08.3]} 61... Nf4 {[%clk 0:00:35.8]} 62. Be3 {[%clk
0:00:08.6]} 62... Ng6 {[%clk 0:00:36.2]} 63. Bg1 {[%clk 0:00:08.8]} 63... Ne7
{[%clk 0:00:37.3]} 64. Bf2 {[%clk 0:00:09]} 64... d5 {[%clk 0:00:38.1]} 65.
cxd5+ {[%clk 0:00:09.4]} 65... Kxd5 {[%clk 0:00:39.3]} 66. Bg3 {[%clk
0:00:10.3]} 66... Nc6 {[%clk 0:00:40.3]} 67. Bc7 {[%clk 0:00:10.8]} 67... Ne7
{[%clk 0:00:21.7]} 68. Bxb6 {[%clk 0:00:10.5]} 68... Kc6 {[%clk 0:00:22.8]} 69.
Bxc5 {[%clk 0:00:10.4]} 1/2-1/2

[Event "*** Titled Tuesday Blitz"]
[Site "Chess.com"]
[Date "2019.02.05"]
[Round "2"]
[White "Korchmar_Vasiliy"]
[Black "Cryptochess"]
[Result "1-0"]
[WhiteElo "2758"]
[BlackElo "2543"]
[TimeControl "180+2"]
[EndTime "13:25:09 PST"]
[Termination "Korchmar_Vasiliy won by resignation"]

1. d4 {[%clk 0:03:01.3]} 1... Nf6 {[%clk 0:02:47.8]} 2. c4 {[%clk 0:03:02.4]}
2... e6 {[%clk 0:02:47.8]} 3. g3 {[%clk 0:03:03.2]} 3... d5 {[%clk 0:02:48.2]}
4. Bg2 {[%clk 0:03:04.4]} 4... Be7 {[%clk 0:02:49.8]} 5. Nf3 {[%clk 0:03:05.1]}
5... O-O {[%clk 0:02:50.4]} 6. O-O {[%clk 0:03:06.5]} 6... dxc4 {[%clk 0:02:52]}
7. Ne5 {[%clk 0:03:07.3]} 7... Nc6 {[%clk 0:02:47.4]} 8. Bxc6 {[%clk 0:03:08]}
8... bxc6 {[%clk 0:02:48.3]} 9. Nxc6 {[%clk 0:03:09.9]} 9... Qd6 {[%clk
0:02:41]} 10. Nxe7+ {[%clk 0:03:11.8]} 10... Qxe7 {[%clk 0:02:42.6]} 11. Qc2
{[%clk 0:03:13.7]} 11... Ba6 {[%clk 0:02:38.6]} 12. Qa4 {[%clk 0:03:12.7]} 12...
Qd6 {[%clk 0:02:35]} 13. Bf4 {[%clk 0:03:14]} 13... Qb6 {[%clk 0:02:35.3]} 14.
Na3 {[%clk 0:03:09.9]} 14... Nd5 {[%clk 0:02:20]} 15. Nxc4 {[%clk 0:03:05.6]}
15... Bxc4 {[%clk 0:02:20.3]} 16. Qxc4 {[%clk 0:03:07.5]} 16... Nxf4 {[%clk
0:02:21.8]} 17. gxf4 {[%clk 0:03:08.8]} 17... Qxb2 {[%clk 0:02:23.3]} 18. Rab1
{[%clk 0:03:02.8]} 18... Qd2 {[%clk 0:02:21.9]} 19. e3 {[%clk 0:02:54.2]} 19...
Rfc8 {[%clk 0:02:10.1]} 20. Rb7 {[%clk 0:02:41.2]} 20... Qa5 {[%clk 0:01:58.5]}
21. Rc1 {[%clk 0:02:31.2]} 21... c6 {[%clk 0:01:56.9]} 22. Rc2 {[%clk
0:01:44.6]} 22... g5 {[%clk 0:01:50.9]} 23. fxg5 {[%clk 0:01:28.4]} 23... Qxg5+
{[%clk 0:01:48.6]} 24. Kf1 {[%clk 0:01:29.9]} 24... Qh5 {[%clk 0:01:42.3]} 25.
Qe2 {[%clk 0:01:11]} 25... Qxh2 {[%clk 0:01:29.1]} 26. Qg4+ {[%clk 0:01:11.5]}
26... Kh8 {[%clk 0:01:16.4]} 27. Rxf7 {[%clk 0:01:09.5]} 27... Rg8 {[%clk
0:01:16.6]} 28. Qf3 {[%clk 0:01:07.6]} 28... Qg1+ {[%clk 0:01:09.3]} 29. Ke2
{[%clk 0:01:08.6]} 29... Qg6 {[%clk 0:01:10.6]} 30. Rxc6 {[%clk 0:01:04.5]}
30... Rab8 {[%clk 0:01:09.9]} 31. Qf6+ {[%clk 0:00:49.1]} 31... Qxf6 {[%clk
0:01:08.7]} 32. Rxf6 {[%clk 0:00:51]} 32... Rb2+ {[%clk 0:01:10.1]} 33. Kd3
{[%clk 0:00:52.5]} 33... Rxa2 {[%clk 0:01:12]} 34. Rcxe6 {[%clk 0:00:48.6]}
34... Rg2 {[%clk 0:01:10.7]} 35. f4 {[%clk 0:00:46]} 35... Ra3+ {[%clk
0:01:10.6]} 36. Ke4 {[%clk 0:00:46.5]} 36... Re2 {[%clk 0:01:11.4]} 37. Kf3
{[%clk 0:00:45.1]} 37... Re1 {[%clk 0:01:07.8]} 38. Re7 {[%clk 0:00:45.7]} 38...
Kg8 {[%clk 0:01:07.7]} 39. Rc6 {[%clk 0:00:42.5]} 39... Kf8 {[%clk 0:01:05.3]}
40. Re5 {[%clk 0:00:30.4]} 40... Rf1+ {[%clk 0:01:02.3]} 41. Ke2 {[%clk
0:00:28.7]} 41... Rh1 {[%clk 0:01:03.2]} 42. Rc8+ {[%clk 0:00:19.3]} 42... Kf7
{[%clk 0:00:58.7]} 43. Rc7+ {[%clk 0:00:20.6]} 43... Kf6 {[%clk 0:00:59.7]} 44.
Rc6+ {[%clk 0:00:21.6]} 44... Kf7 {[%clk 0:01:00.9]} 45. Rce6 {[%clk 0:00:17.1]}
45... h5 {[%clk 0:00:50.4]} 46. Kf3 {[%clk 0:00:18]} 46... Rh3+ {[%clk
0:00:50.9]} 47. Kg2 {[%clk 0:00:18.1]} 47... Rh4 {[%clk 0:00:49.3]} 48. Rh6
{[%clk 0:00:15.2]} 48... Ra2+ {[%clk 0:00:36.9]} 49. Kg3 {[%clk 0:00:16.4]}
49... Rg4+ {[%clk 0:00:37.5]} 50. Kf3 {[%clk 0:00:17.5]} 50... Rg1 {[%clk
0:00:38.6]} 51. Rhxh5 {[%clk 0:00:14.1]} 51... Rf1+ {[%clk 0:00:39.6]} 52. Ke4
{[%clk 0:00:14.4]} 52... Ra3 {[%clk 0:00:39.6]} 53. Rh7+ {[%clk 0:00:15.1]}
53... Kg6 {[%clk 0:00:40.3]} 54. Rhe7 {[%clk 0:00:12.3]} 54... a5 {[%clk
0:00:37.6]} 55. f5+ {[%clk 0:00:12.7]} 55... Kg5 {[%clk 0:00:38]} 56. Rg7+
{[%clk 0:00:10.4]} 56... Kf6 {[%clk 0:00:38.9]} 57. Rg6+ {[%clk 0:00:10.9]}
57... Kf7 {[%clk 0:00:40.2]} 58. Ra6 {[%clk 0:00:10.3]} 58... Re1 {[%clk
0:00:40.2]} 59. Ra7+ {[%clk 0:00:08.4]} 59... Kf8 {[%clk 0:00:39.8]} 60. Kf3
{[%clk 0:00:05.6]} 60... Rf1+ {[%clk 0:00:40.6]} 61. Kg4 {[%clk 0:00:05.7]}
61... Rg1+ {[%clk 0:00:41.1]} 62. Kf4 {[%clk 0:00:05.5]} 62... a4 {[%clk
0:00:30.7]} 63. Rb5 {[%clk 0:00:06.2]} 63... Rf1+ {[%clk 0:00:29.9]} 64. Ke4
{[%clk 0:00:07.2]} 1-0